[Event "Titled Tuesday Blitz August 08 Late 2023"]
[White "Matinian, Nikita"]
[Black "Grossboss19"]
[WhiteFideId "24129100"]
[WhiteElo "2689"]
[BlackElo "2532"]
[Result "1/2-1/2"]
[Round "8"]
[TimeControl "180+1"]
[Date "2023.08.08"]
[WhiteClock "0:00:11"]
[BlackClock "0:00:02"]
[Board "49"]

1. e4 {[%clk 0:03:00]}  c6 {[%clk 0:02:58]} 2. d4 {[%clk 0:03:00]}  d5 {[%clk 0:02:58]} 3. e5 {[%clk 0:03:01]}  c5 {[%clk 0:02:56]} 4. Nf3 {[%clk 0:03:02]}  cxd4 {[%clk 0:02:51]} 5. Qxd4 {[%clk 0:03:03]}  Nc6 {[%clk 0:02:49]} 6. Qf4 {[%clk 0:03:03]}  e6 {[%clk 0:02:48]} 7. Bd3 {[%clk 0:03:02]}  Nb4 {[%clk 0:02:46]} 8. O-O {[%clk 0:03:00]}  Bd7 {[%clk 0:02:44]} 9. Bd2 {[%clk 0:02:59]}  Nxd3 {[%clk 0:02:44]} 10. cxd3 {[%clk 0:03:00]}  h6 {[%clk 0:02:39]} 11. Bb4 {[%clk 0:02:52]}  Ne7 {[%clk 0:02:34]} 12. Nc3 {[%clk 0:02:46]}  Ng6 {[%clk 0:02:27]} 13. Qd4 {[%clk 0:02:45]}  Qb6 {[%clk 0:02:15]} 14. Bxf8 {[%clk 0:02:43]}  Qxd4 {[%clk 0:02:15]} 15. Nxd4 {[%clk 0:02:44]}  Rxf8 {[%clk 0:02:14]} 16. f4 {[%clk 0:02:44]}  f6 {[%clk 0:02:11]} 17. exf6 {[%clk 0:02:39]}  Rxf6 {[%clk 0:02:07]} 18. f5 {[%clk 0:02:33]}  Nf8 {[%clk 0:01:46]} 19. fxe6 {[%clk 0:02:25]}  Bxe6 {[%clk 0:01:27]} 20. Rxf6 {[%clk 0:02:24]}  gxf6 {[%clk 0:01:27]} 21. Nxe6 {[%clk 0:02:24]}  Nxe6 {[%clk 0:01:28]} 22. Nxd5 {[%clk 0:02:24]}  O-O-O {[%clk 0:01:01]} 23. Nxf6 {[%clk 0:02:18]}  Rxd3 {[%clk 0:01:01]} 24. Rc1+ {[%clk 0:02:17]}  Kd8 {[%clk 0:00:59]} 25. Ne4 {[%clk 0:02:06]}  Re3 {[%clk 0:00:51]} 26. Rd1+ {[%clk 0:02:06]}  Ke7 {[%clk 0:00:51]} 27. Nc3 {[%clk 0:02:06]}  Re5 {[%clk 0:00:47]} 28. g3 {[%clk 0:02:06]}  a6 {[%clk 0:00:41]} 29. Kf2 {[%clk 0:02:06]}  b5 {[%clk 0:00:41]} 30. Nd5+ {[%clk 0:02:01]}  Kf7 {[%clk 0:00:40]} 31. Nb4 {[%clk 0:01:54]}  Rc5 {[%clk 0:00:38]} 32. Rd7+ {[%clk 0:01:39]}  Kf6 {[%clk 0:00:33]} 33. Rd2 {[%clk 0:01:40]}  a5 {[%clk 0:00:31]} 34. Nd5+ {[%clk 0:01:37]}  Ke5 {[%clk 0:00:30]} 35. Ne3 {[%clk 0:01:38]}  h5 {[%clk 0:00:28]} 36. b3 {[%clk 0:01:34]}  Nd4 {[%clk 0:00:26]} 37. h3 {[%clk 0:01:31]}  Ke4 {[%clk 0:00:26]} 38. g4 {[%clk 0:01:27]}  h4 {[%clk 0:00:25]} 39. Nd1 {[%clk 0:00:59]}  Nf3 {[%clk 0:00:22]} 40. Re2+ {[%clk 0:00:56]}  Kf4 {[%clk 0:00:21]} 41. Ne3 {[%clk 0:00:56]}  Nd4 {[%clk 0:00:15]} 42. Ng2+ {[%clk 0:00:53]}  Kg5 {[%clk 0:00:15]} 43. Rd2 {[%clk 0:00:52]}  Rc2 {[%clk 0:00:15]} 44. Rxc2 {[%clk 0:00:47]}  Nxc2 {[%clk 0:00:15]} 45. Ne1 {[%clk 0:00:45]}  Nb4 {[%clk 0:00:13]} 46. a4 {[%clk 0:00:45]}  bxa4 {[%clk 0:00:13]} 47. bxa4 {[%clk 0:00:46]}  Nd5 {[%clk 0:00:11]} 48. Nf3+ {[%clk 0:00:46]}  Kf4 {[%clk 0:00:11]} 49. Nxh4 {[%clk 0:00:46]}  Nc3 {[%clk 0:00:11]} 50. Ng2+ {[%clk 0:00:47]}  Kg5 {[%clk 0:00:11]} 51. Ne3 {[%clk 0:00:47]}  Nxa4 {[%clk 0:00:11]} 52. Nc4 {[%clk 0:00:48]}  Kh4 {[%clk 0:00:11]} 53. Kg2 {[%clk 0:00:46]}  Nc3 {[%clk 0:00:10]} 54. Nd2 {[%clk 0:00:37]}  Kg5 {[%clk 0:00:07]} 55. Kg3 {[%clk 0:00:38]}  Ne2+ {[%clk 0:00:07]} 56. Kf2 {[%clk 0:00:36]}  Nf4 {[%clk 0:00:05]} 57. Nf3+ {[%clk 0:00:36]}  Kf6 {[%clk 0:00:05]} 58. h4 {[%clk 0:00:34]}  a4 {[%clk 0:00:05]} 59. Nd4 {[%clk 0:00:20]}  a3 {[%clk 0:00:03]} 60. Kf3 {[%clk 0:00:20]}  a2 {[%clk 0:00:02]} 61. g5+ {[%clk 0:00:15]}  Kg6 {[%clk 0:00:01]} 62. Nb3 {[%clk 0:00:14]}  Nd5 {[%clk 0:00:02]} 63. Kg4 {[%clk 0:00:14]}  Ne3+ {[%clk 0:00:02]} 64. Kg3 {[%clk 0:00:14]}  Nf5+ {[%clk 0:00:02]} 65. Kg4 {[%clk 0:00:13]}  Ne3+ {[%clk 0:00:03]} 66. Kh3 {[%clk 0:00:14]}  Kh5 {[%clk 0:00:03]} 67. Kg3 {[%clk 0:00:13]}  Nf5+ {[%clk 0:00:03]} 68. Kf4 {[%clk 0:00:12]}  Nxh4 {[%clk 0:00:02]} 69. Na1 {[%clk 0:00:12]}  Ng6+ {[%clk 0:00:02]} 70. Kf5 {[%clk 0:00:13]}  Nh4+ {[%clk 0:00:02]} 71. Kf6 {[%clk 0:00:13]}  Kg4 {[%clk 0:00:02]} 72. Nb3 {[%clk 0:00:13]}  Kf3 {[%clk 0:00:02]} 73. Ke5 {[%clk 0:00:11]}  Ke3 {[%clk 0:00:01]} 74. Kd5 {[%clk 0:00:11]}  Kd3 {[%clk 0:00:02]} 75. Nc1+ {[%clk 0:00:12]}  Ke3 {[%clk 0:00:01]} 76. Nxa2 {[%clk 0:00:12]}  Kf4 {[%clk 0:00:02]} 77. g6 {[%clk 0:00:11]}  Nxg6 {[%clk 0:00:02]} 1/2-1/2


[Site "https://www.chess.com"]

[Event "Titled Tuesday Blitz August 08 Late 2023"]
[White "Ansh M Shah"]
[Black "Hoang, Thi Bao Tram"]
[WhiteFideId "25033379"]
[BlackFideId "12401102"]
[WhiteElo "2526"]
[BlackElo "2670"]
[Result "0-1"]
[Round "8"]
[TimeControl "180+1"]
[Date "2023.08.08"]
[WhiteClock "0:00:03"]
[BlackClock "0:00:14"]
[Board "51"]

1. d4 {[%clk 0:03:00]}  d5 {[%clk 0:02:54]} 2. c4 {[%clk 0:03:00]}  c6 {[%clk 0:02:55]} 3. cxd5 {[%clk 0:03:00]}  cxd5 {[%clk 0:02:55]} 4. Nc3 {[%clk 0:03:01]}  Nf6 {[%clk 0:02:55]} 5. Bf4 {[%clk 0:03:02]}  e6 {[%clk 0:02:54]} 6. e3 {[%clk 0:02:59]}  Qb6 {[%clk 0:02:52]} 7. Bb5+ {[%clk 0:02:56]}  Bd7 {[%clk 0:02:51]} 8. Qa4 {[%clk 0:02:47]}  Nc6 {[%clk 0:02:49]} 9. Nf3 {[%clk 0:02:41]}  a6 {[%clk 0:02:48]} 10. O-O {[%clk 0:02:35]}  Rc8 {[%clk 0:02:48]} 11. Be2 {[%clk 0:02:32]}  Be7 {[%clk 0:02:39]} 12. Qb3 {[%clk 0:02:19]}  Qxb3 {[%clk 0:02:32]} 13. axb3 {[%clk 0:02:20]}  O-O {[%clk 0:02:29]} 14. Rfc1 {[%clk 0:02:20]}  Nb4 {[%clk 0:02:25]} 15. Ne5 {[%clk 0:02:15]}  Rfd8 {[%clk 0:02:19]} 16. Na4 {[%clk 0:02:12]}  Bxa4 {[%clk 0:01:57]} 17. bxa4 {[%clk 0:02:09]}  Ne4 {[%clk 0:01:52]} 18. Nf3 {[%clk 0:01:49]}  f6 {[%clk 0:01:37]} 19. h3 {[%clk 0:01:34]}  Kf7 {[%clk 0:01:26]} 20. g4 {[%clk 0:01:34]}  g5 {[%clk 0:01:20]} 21. Bh2 {[%clk 0:01:33]}  h6 {[%clk 0:01:19]} 22. Kg2 {[%clk 0:01:32]}  Nc2 {[%clk 0:01:15]} 23. Rab1 {[%clk 0:01:30]}  Nb4 {[%clk 0:01:15]} 24. Bg3 {[%clk 0:01:23]}  Bd6 {[%clk 0:01:00]} 25. Bxd6 {[%clk 0:01:20]}  Nxd6 {[%clk 0:01:01]} 26. Nd2 {[%clk 0:01:15]}  Ke7 {[%clk 0:00:56]} 27. f3 {[%clk 0:01:08]}  f5 {[%clk 0:00:37]} 28. Kf2 {[%clk 0:01:05]}  Kf6 {[%clk 0:00:36]} 29. Nb3 {[%clk 0:01:01]}  b6 {[%clk 0:00:33]} 30. a5 {[%clk 0:00:59]}  b5 {[%clk 0:00:32]} 31. Nc5 {[%clk 0:00:59]}  Rc6 {[%clk 0:00:28]} 32. Rc3 {[%clk 0:00:52]}  f4 {[%clk 0:00:18]} 33. exf4 {[%clk 0:00:31]}  gxf4 {[%clk 0:00:18]} 34. Rd1 {[%clk 0:00:22]}  Nc4 {[%clk 0:00:17]} 35. Bxc4 {[%clk 0:00:20]}  bxc4 {[%clk 0:00:16]} 36. b3 {[%clk 0:00:19]}  e5 {[%clk 0:00:16]} 37. dxe5+ {[%clk 0:00:08]}  Kxe5 {[%clk 0:00:16]} 38. Na4 {[%clk 0:00:06]}  Rdc8 {[%clk 0:00:14]} 39. bxc4 {[%clk 0:00:06]}  dxc4 {[%clk 0:00:14]} 40. Nb6 {[%clk 0:00:05]}  R8c7 {[%clk 0:00:14]} 41. Re1+ {[%clk 0:00:05]}  Kd4 {[%clk 0:00:14]} 42. Rcc1 {[%clk 0:00:05]}  Nd3+ {[%clk 0:00:14]} 43. Ke2 {[%clk 0:00:05]}  Nxe1 {[%clk 0:00:14]} 44. Kxe1 {[%clk 0:00:05]}  c3 {[%clk 0:00:15]} 45. Rd1+ {[%clk 0:00:05]}  Ke3 {[%clk 0:00:15]} 46. Rd5 {[%clk 0:00:04]}  Kxf3 {[%clk 0:00:15]} 47. Rd3+ {[%clk 0:00:04]}  Kg2 {[%clk 0:00:15]} 48. Ke2 {[%clk 0:00:04]}  c2 {[%clk 0:00:15]} 49. Nd5 {[%clk 0:00:04]}  Rc4 {[%clk 0:00:14]} 50. Nxf4+ {[%clk 0:00:02]}  Rxf4 {[%clk 0:00:14]} 51. Rd2 {[%clk 0:00:02]}  Rf2+ {[%clk 0:00:14]} 52. Ke3 {[%clk 0:00:03]}  Rxd2 {[%clk 0:00:14]} 53. Kxd2 {[%clk 0:00:03]}  c1=Q+ {[%clk 0:00:14]} 0-1


[Site "https://www.chess.com"]

[Event "Titled Tuesday Blitz August 08 Late 2023"]
[White "Eugene, Floryan"]
[Black "Hansen, Torbjorn Ringdal"]
[WhiteFideId "20694784"]
[BlackFideId "1501720"]
[WhiteElo "2663"]
[BlackElo "2524"]
[Result "0-1"]
[Round "8"]
[TimeControl "180+1"]
[Date "2023.08.08"]
[WhiteClock "0:00:20"]
[BlackClock "0:00:30"]
[Board "52"]

1. e4 {[%clk 0:03:00]}  e5 {[%clk 0:02:59]} 2. Nf3 {[%clk 0:03:00]}  Nc6 {[%clk 0:02:59]} 3. d4 {[%clk 0:03:00]}  exd4 {[%clk 0:02:58]} 4. Nxd4 {[%clk 0:03:01]}  Nf6 {[%clk 0:02:57]} 5. Nxc6 {[%clk 0:03:01]}  bxc6 {[%clk 0:02:57]} 6. e5 {[%clk 0:03:01]}  Qe7 {[%clk 0:02:55]} 7. Qe2 {[%clk 0:03:02]}  Nd5 {[%clk 0:02:53]} 8. h4 {[%clk 0:03:02]}  f6 {[%clk 0:02:46]} 9. Rh3 {[%clk 0:02:52]}  fxe5 {[%clk 0:02:40]} 10. c4 {[%clk 0:02:46]}  Nf6 {[%clk 0:02:35]} 11. Bg5 {[%clk 0:02:23]}  d6 {[%clk 0:02:25]} 12. Ra3 {[%clk 0:02:19]}  Be6 {[%clk 0:02:18]} 13. Nd2 {[%clk 0:02:15]}  h6 {[%clk 0:02:16]} 14. Be3 {[%clk 0:02:11]}  Qf7 {[%clk 0:02:12]} 15. Bxa7 {[%clk 0:02:04]}  Be7 {[%clk 0:01:50]} 16. Bc5 {[%clk 0:01:56]}  O-O {[%clk 0:01:47]} 17. Rxa8 {[%clk 0:01:55]}  Rxa8 {[%clk 0:01:47]} 18. Be3 {[%clk 0:01:51]}  d5 {[%clk 0:01:44]} 19. f3 {[%clk 0:01:47]}  Bb4 {[%clk 0:01:24]} 20. a3 {[%clk 0:01:36]}  dxc4 {[%clk 0:01:20]} 21. O-O-O {[%clk 0:01:34]}  c3 {[%clk 0:01:02]} 22. axb4 {[%clk 0:01:18]}  Ra1+ {[%clk 0:00:50]} 23. Nb1 {[%clk 0:00:52]}  Bf5 {[%clk 0:00:50]} 24. Rd8+ {[%clk 0:00:48]}  Kh7 {[%clk 0:00:48]} 25. Rd3 {[%clk 0:00:42]}  Qa2 {[%clk 0:00:45]} 26. Qc2 {[%clk 0:00:42]}  Nd5 {[%clk 0:00:36]} 27. bxc3 {[%clk 0:00:29]}  Qxc2+ {[%clk 0:00:34]} 28. Kxc2 {[%clk 0:00:29]}  Nxe3+ {[%clk 0:00:33]} 29. Kb2 {[%clk 0:00:20]}  Rxb1+ {[%clk 0:00:30]} 0-1


[Site "https://www.chess.com"]

[Event "Titled Tuesday Blitz August 08 Late 2023"]
[White "Weishaeutel, Moritz"]
[Black "Domingo Nunez, Alejandro"]
[WhiteFideId "12967300"]
[BlackFideId "22245561"]
[WhiteElo "2654"]
[BlackElo "2520"]
[Result "1-0"]
[Round "8"]
[TimeControl "180+1"]
[Date "2023.08.08"]
[WhiteClock "0:00:03"]
[BlackClock "0:00:01"]
[Board "54"]

1. e4 {[%clk 0:03:00]}  g6 {[%clk 0:02:58]} 2. d4 {[%clk 0:02:55]}  Bg7 {[%clk 0:02:57]} 3. Nf3 {[%clk 0:02:56]}  c6 {[%clk 0:02:58]} 4. c4 {[%clk 0:02:51]}  d5 {[%clk 0:02:56]} 5. exd5 {[%clk 0:02:52]}  cxd5 {[%clk 0:02:52]} 6. Nc3 {[%clk 0:02:53]}  Nf6 {[%clk 0:02:50]} 7. cxd5 {[%clk 0:02:50]}  Nxd5 {[%clk 0:02:50]} 8. Bc4 {[%clk 0:02:50]}  Nb6 {[%clk 0:02:47]} 9. Bb3 {[%clk 0:02:50]}  Nc6 {[%clk 0:02:45]} 10. O-O {[%clk 0:02:50]}  O-O {[%clk 0:02:44]} 11. d5 {[%clk 0:02:45]}  Na5 {[%clk 0:01:58]} 12. Bg5 {[%clk 0:02:46]}  Re8 {[%clk 0:01:23]} 13. Re1 {[%clk 0:02:39]}  Nac4 {[%clk 0:01:16]} 14. Qe2 {[%clk 0:02:34]}  Nd6 {[%clk 0:01:10]} 15. Rad1 {[%clk 0:02:17]}  Bg4 {[%clk 0:01:03]} 16. h3 {[%clk 0:02:16]}  Bxf3 {[%clk 0:01:04]} 17. Qxf3 {[%clk 0:02:17]}  Qd7 {[%clk 0:01:04]} 18. Re2 {[%clk 0:02:07]}  Rac8 {[%clk 0:01:02]} 19. Rde1 {[%clk 0:02:07]}  Bf8 {[%clk 0:00:56]} 20. Bf4 {[%clk 0:01:51]}  Nbc4 {[%clk 0:00:50]} 21. h4 {[%clk 0:01:37]}  h5 {[%clk 0:00:46]} 22. Bc2 {[%clk 0:01:33]}  Bg7 {[%clk 0:00:41]} 23. Ne4 {[%clk 0:01:27]}  Nf5 {[%clk 0:00:37]} 24. Qh3 {[%clk 0:00:44]}  Qd8 {[%clk 0:00:24]} 25. Ng5 {[%clk 0:00:40]}  Nd4 {[%clk 0:00:23]} 26. Nxf7 {[%clk 0:00:15]}  Nxe2+ {[%clk 0:00:12]} 27. Rxe2 {[%clk 0:00:15]}  Qxd5 {[%clk 0:00:13]} 28. Ng5 {[%clk 0:00:07]}  Ne5 {[%clk 0:00:06]} 29. Bxe5 {[%clk 0:00:03]}  Rxc2 {[%clk 0:00:06]} 30. Rxc2 {[%clk 0:00:02]}  Qd1+ {[%clk 0:00:06]} 31. Kh2 {[%clk 0:00:03]}  Bxe5+ {[%clk 0:00:04]} 32. g3 {[%clk 0:00:02]}  Qxc2 {[%clk 0:00:01]} 33. Qe6+ {[%clk 0:00:03]}  Kh8 {[%clk 0:00:01]} 34. Qxe5+ {[%clk 0:00:03]}  Kg8 {[%clk 0:00:02]} 35. Qe6+ {[%clk 0:00:04]}  Kh8 {[%clk 0:00:02]} 36. Qf7 {[%clk 0:00:03]}  Qb3 {[%clk 0:00:01]} 37. Qh7# {[%clk 0:00:03]} 1-0


[Site "https://www.chess.com"]

[Event "Titled Tuesday Blitz August 08 Late 2023"]
[White "ATM622"]
[Black "Fisher_TheGalactic"]
[WhiteElo "2516"]
[BlackElo "2650"]
[Result "1-0"]
[Round "8"]
[TimeControl "180+1"]
[Date "2023.08.08"]
[WhiteClock "0:01:42"]
[BlackClock "0:00:51"]
[Board "55"]

1. d4 {[%clk 0:02:52]}  d5 {[%clk 0:02:59]} 2. c4 {[%clk 0:02:51]}  e6 {[%clk 0:02:59]} 3. Nf3 {[%clk 0:02:50]}  Nf6 {[%clk 0:02:59]} 4. g3 {[%clk 0:02:49]}  Bb4+ {[%clk 0:02:58]} 5. Bd2 {[%clk 0:02:48]}  Bxd2+ {[%clk 0:02:56]} 6. Nbxd2 {[%clk 0:02:48]}  O-O {[%clk 0:02:56]} 7. Bg2 {[%clk 0:02:48]}  c6 {[%clk 0:02:56]} 8. O-O {[%clk 0:02:49]}  Nbd7 {[%clk 0:02:56]} 9. Qc2 {[%clk 0:02:49]}  Nb6 {[%clk 0:02:46]} 10. b3 {[%clk 0:02:47]}  Qe7 {[%clk 0:02:42]} 11. e4 {[%clk 0:02:46]}  dxe4 {[%clk 0:02:41]} 12. Nxe4 {[%clk 0:02:45]}  Rd8 {[%clk 0:02:41]} 13. Rfd1 {[%clk 0:02:43]}  Nbd7 {[%clk 0:02:39]} 14. Ne5 {[%clk 0:02:42]}  Nxe4 {[%clk 0:02:35]} 15. Bxe4 {[%clk 0:02:41]}  Nf6 {[%clk 0:02:33]} 16. Bg2 {[%clk 0:02:39]}  Bd7 {[%clk 0:02:33]} 17. Qc3 {[%clk 0:02:34]}  Be8 {[%clk 0:02:31]} 18. b4 {[%clk 0:02:33]}  Rd6 {[%clk 0:02:23]} 19. a4 {[%clk 0:02:30]}  a6 {[%clk 0:01:57]} 20. Bf3 {[%clk 0:02:21]}  h6 {[%clk 0:01:55]} 21. Qb2 {[%clk 0:02:13]}  Nh7 {[%clk 0:01:52]} 22. b5 {[%clk 0:02:11]}  axb5 {[%clk 0:01:48]} 23. axb5 {[%clk 0:02:11]}  Rxa1 {[%clk 0:01:48]} 24. Rxa1 {[%clk 0:02:10]}  cxb5 {[%clk 0:01:49]} 25. cxb5 {[%clk 0:02:02]}  Ng5 {[%clk 0:01:43]} 26. Bg2 {[%clk 0:02:00]}  Rb6 {[%clk 0:01:42]} 27. Ra8 {[%clk 0:01:52]}  Kh7 {[%clk 0:01:41]} 28. Qc2+ {[%clk 0:01:48]}  Kg8 {[%clk 0:00:58]} 29. Qc8 {[%clk 0:01:44]}  Kf8 {[%clk 0:00:51]} 30. Nd7+ {[%clk 0:01:42]} 1-0


[Site "https://www.chess.com"]

[Event "Titled Tuesday Blitz August 08 Late 2023"]
[White "Domingo Nunez, Ruben"]
[Black "Grinev, Valeriy"]
[WhiteFideId "22245570"]
[BlackFideId "14117517"]
[WhiteElo "2631"]
[BlackElo "2509"]
[Result "0-1"]
[Round "8"]
[TimeControl "180+1"]
[Date "2023.08.08"]
[WhiteClock "0:00:12"]
[BlackClock "0:00:21"]
[Board "58"]

1. Nf3 {[%clk 0:03:00]}  c5 {[%clk 0:02:59]} 2. c4 {[%clk 0:02:59]}  Nc6 {[%clk 0:03:00]} 3. g3 {[%clk 0:02:58]}  g6 {[%clk 0:03:00]} 4. Bg2 {[%clk 0:02:59]}  Bg7 {[%clk 0:03:01]} 5. Nc3 {[%clk 0:02:59]}  Nf6 {[%clk 0:03:02]} 6. d3 {[%clk 0:03:00]}  O-O {[%clk 0:03:01]} 7. Bd2 {[%clk 0:03:00]}  d5 {[%clk 0:03:01]} 8. cxd5 {[%clk 0:03:00]}  Nxd5 {[%clk 0:03:02]} 9. Qc1 {[%clk 0:03:01]}  Nxc3 {[%clk 0:03:00]} 10. Bxc3 {[%clk 0:03:02]}  e5 {[%clk 0:02:59]} 11. h4 {[%clk 0:03:00]}  h5 {[%clk 0:02:58]} 12. Bd2 {[%clk 0:02:57]}  Qb6 {[%clk 0:02:56]} 13. Bh6 {[%clk 0:02:48]}  Bg4 {[%clk 0:02:50]} 14. Bxg7 {[%clk 0:02:06]}  Kxg7 {[%clk 0:02:51]} 15. Nh2 {[%clk 0:02:07]}  Be6 {[%clk 0:02:44]} 16. g4 {[%clk 0:02:02]}  hxg4 {[%clk 0:02:43]} 17. h5 {[%clk 0:01:59]}  Rh8 {[%clk 0:02:37]} 18. hxg6 {[%clk 0:01:59]}  Kxg6 {[%clk 0:02:37]} 19. f3 {[%clk 0:01:31]}  g3 {[%clk 0:02:28]} 20. Nf1 {[%clk 0:01:30]}  Rxh1 {[%clk 0:02:27]} 21. Bxh1 {[%clk 0:01:30]}  Rh8 {[%clk 0:02:12]} 22. Nxg3 {[%clk 0:01:02]}  Qb4+ {[%clk 0:02:11]} 23. Qd2 {[%clk 0:00:58]}  Qf4 {[%clk 0:01:56]} 24. O-O-O {[%clk 0:00:43]}  Qxg3 {[%clk 0:01:46]} 25. f4 {[%clk 0:00:44]}  Qxf4 {[%clk 0:01:38]} 26. e3 {[%clk 0:00:44]}  Qh2 {[%clk 0:01:30]} 27. Qc3 {[%clk 0:00:31]}  Nb4 {[%clk 0:00:50]} 28. Kb1 {[%clk 0:00:18]}  Bxa2+ {[%clk 0:00:47]} 29. Ka1 {[%clk 0:00:18]}  Be6 {[%clk 0:00:42]} 30. Qxc5 {[%clk 0:00:17]}  Qxh1 {[%clk 0:00:28]} 31. Qc1 {[%clk 0:00:13]}  Qd5 {[%clk 0:00:21]} 32. Qb1 {[%clk 0:00:12]} 0-1


[Site "https://www.chess.com"]

[Event "Titled Tuesday Blitz August 08 Late 2023"]
[White "Vaibhav Jayant Raut"]
[Black "Toncheva, Nadya"]
[WhiteFideId "5089034"]
[BlackFideId "2924056"]
[WhiteElo "2603"]
[BlackElo "2504"]
[Result "0-1"]
[Round "8"]
[TimeControl "180+1"]
[Date "2023.08.08"]
[WhiteClock "0:00:15"]
[BlackClock "0:00:08"]
[Board "59"]

1. e4 {[%clk 0:02:51]}  c5 {[%clk 0:02:59]} 2. Nf3 {[%clk 0:02:50]}  Nc6 {[%clk 0:03:00]} 3. d4 {[%clk 0:02:50]}  cxd4 {[%clk 0:03:01]} 4. Nxd4 {[%clk 0:02:51]}  g6 {[%clk 0:03:01]} 5. Nc3 {[%clk 0:02:51]}  Bg7 {[%clk 0:03:02]} 6. Be3 {[%clk 0:02:52]}  Nf6 {[%clk 0:03:02]} 7. f3 {[%clk 0:02:51]}  O-O {[%clk 0:03:02]} 8. Bc4 {[%clk 0:02:48]}  d6 {[%clk 0:03:02]} 9. O-O {[%clk 0:02:47]}  Bd7 {[%clk 0:02:54]} 10. Qd2 {[%clk 0:02:44]}  a6 {[%clk 0:02:53]} 11. Nxc6 {[%clk 0:02:40]}  bxc6 {[%clk 0:02:47]} 12. Bb3 {[%clk 0:02:40]}  Rb8 {[%clk 0:02:42]} 13. Bh6 {[%clk 0:02:39]}  Qa5 {[%clk 0:02:33]} 14. Bxg7 {[%clk 0:02:38]}  Kxg7 {[%clk 0:02:33]} 15. Rad1 {[%clk 0:02:38]}  Be6 {[%clk 0:02:28]} 16. Kh1 {[%clk 0:02:36]}  Nd7 {[%clk 0:02:17]} 17. Qd4+ {[%clk 0:02:24]}  Qe5 {[%clk 0:02:09]} 18. Qe3 {[%clk 0:02:15]}  Nc5 {[%clk 0:01:25]} 19. f4 {[%clk 0:02:11]}  Qh5 {[%clk 0:01:25]} 20. f5 {[%clk 0:01:53]}  Bxb3 {[%clk 0:01:25]} 21. axb3 {[%clk 0:01:51]}  f6 {[%clk 0:01:22]} 22. Rf3 {[%clk 0:01:48]}  g5 {[%clk 0:01:08]} 23. Rh3 {[%clk 0:01:47]}  Qf7 {[%clk 0:01:03]} 24. e5 {[%clk 0:01:47]}  fxe5 {[%clk 0:00:58]} 25. Qxg5+ {[%clk 0:01:44]}  Kh8 {[%clk 0:00:57]} 26. Rf1 {[%clk 0:01:43]}  Rg8 {[%clk 0:00:56]} 27. Qh4 {[%clk 0:01:40]}  a5 {[%clk 0:00:54]} 28. f6 {[%clk 0:01:39]}  Rb4 {[%clk 0:00:52]} 29. Qh6 {[%clk 0:01:30]}  Rg6 {[%clk 0:00:51]} 30. Qh5 {[%clk 0:00:58]}  exf6 {[%clk 0:00:50]} 31. Rhf3 {[%clk 0:00:57]}  Kg7 {[%clk 0:00:38]} 32. Qf5 {[%clk 0:00:55]}  Rbg4 {[%clk 0:00:33]} 33. R3f2 {[%clk 0:00:49]}  Ne6 {[%clk 0:00:28]} 34. Ne2 {[%clk 0:00:46]}  R6g5 {[%clk 0:00:26]} 35. Qd3 {[%clk 0:00:42]}  d5 {[%clk 0:00:22]} 36. Ng3 {[%clk 0:00:40]}  Nf4 {[%clk 0:00:15]} 37. Qf3 {[%clk 0:00:39]}  Qg6 {[%clk 0:00:14]} 38. Ra1 {[%clk 0:00:35]}  Rxg3 {[%clk 0:00:08]} 39. hxg3 {[%clk 0:00:30]}  Rxg3 {[%clk 0:00:09]} 40. Rxa5 {[%clk 0:00:14]}  Rxf3 {[%clk 0:00:09]} 41. gxf3 {[%clk 0:00:15]}  Qh5+ {[%clk 0:00:09]} 42. Kg1 {[%clk 0:00:14]}  Nh3+ {[%clk 0:00:08]} 43. Kf1 {[%clk 0:00:15]}  Nxf2 {[%clk 0:00:09]} 44. Kxf2 {[%clk 0:00:16]}  Qh2+ {[%clk 0:00:09]} 45. Ke3 {[%clk 0:00:16]}  Qxc2 {[%clk 0:00:08]} 46. Ra7+ {[%clk 0:00:15]}  Kg6 {[%clk 0:00:08]} 0-1


[Site "https://www.chess.com"]

[Event "Titled Tuesday Blitz August 08 Late 2023"]
[White "Krishnan, Varun"]
[Black "maksimys18"]
[WhiteFideId "5054508"]
[WhiteElo "2576"]
[BlackElo "2489"]
[Result "1-0"]
[Round "8"]
[TimeControl "180+1"]
[Date "2023.08.08"]
[WhiteClock "0:01:58"]
[BlackClock "0:00:50"]
[Board "63"]

1. d4 {[%clk 0:03:00]}  e6 {[%clk 0:03:00]} 2. c4 {[%clk 0:03:00]}  d5 {[%clk 0:03:01]} 3. Nc3 {[%clk 0:03:00]}  Be7 {[%clk 0:03:01]} 4. Nf3 {[%clk 0:02:58]}  Nf6 {[%clk 0:03:01]} 5. Bf4 {[%clk 0:02:58]}  O-O {[%clk 0:03:00]} 6. e3 {[%clk 0:02:58]}  b6 {[%clk 0:03:00]} 7. cxd5 {[%clk 0:02:58]}  exd5 {[%clk 0:02:59]} 8. Bd3 {[%clk 0:02:55]}  Be6 {[%clk 0:02:59]} 9. O-O {[%clk 0:02:54]}  c5 {[%clk 0:03:00]} 10. Ne5 {[%clk 0:02:53]}  Bd6 {[%clk 0:02:53]} 11. Qf3 {[%clk 0:02:49]}  cxd4 {[%clk 0:02:50]} 12. exd4 {[%clk 0:02:49]}  a6 {[%clk 0:02:22]} 13. Bg5 {[%clk 0:02:44]}  Nbd7 {[%clk 0:02:14]} 14. Nxd7 {[%clk 0:02:41]}  Qxd7 {[%clk 0:02:03]} 15. Bxf6 {[%clk 0:02:40]}  gxf6 {[%clk 0:02:03]} 16. Qxf6 {[%clk 0:02:40]}  Be7 {[%clk 0:01:52]} 17. Qh6 {[%clk 0:02:40]}  f5 {[%clk 0:01:52]} 18. Rfe1 {[%clk 0:02:34]}  Rf6 {[%clk 0:01:51]} 19. Qh5 {[%clk 0:02:33]}  Raf8 {[%clk 0:01:49]} 20. Re3 {[%clk 0:02:31]}  Bd6 {[%clk 0:01:44]} 21. Rae1 {[%clk 0:02:28]}  f4 {[%clk 0:01:41]} 22. Rxe6 {[%clk 0:02:25]}  Rxe6 {[%clk 0:01:32]} 23. Rxe6 {[%clk 0:02:26]}  Rf7 {[%clk 0:01:32]} 24. Re1 {[%clk 0:02:15]}  f3 {[%clk 0:01:31]} 25. Nxd5 {[%clk 0:02:11]}  fxg2 {[%clk 0:01:28]} 26. Bxh7+ {[%clk 0:02:04]}  Rxh7 {[%clk 0:00:51]} 27. Nf6+ {[%clk 0:02:00]}  Kh8 {[%clk 0:00:51]} 28. Re8+ {[%clk 0:01:59]}  Kg7 {[%clk 0:00:51]} 29. Qxh7+ {[%clk 0:01:58]}  Kxf6 {[%clk 0:00:50]} 30. Qxd7 {[%clk 0:01:58]} 1-0


[Site "https://www.chess.com"]